[Event "XXVII RUS-chT Women 2020"]
[Site "Sochi"]
[Date "2020.11.19"]
[Round "1.6"]
[White "Semenova, Elena"]
[Black "Kovalevskaya, Ekaterina"]
[Result "1-0"]
[ECO "B30"]
[WhiteElo "2299"]
[BlackElo "2386"]
[Annotator "ChessBase"]
[PlyCount "155"]
[EventDate "2020.11.19"]
[EventType "team-tourn"]
[EventCountry "RUS"]
[SourceTitle "playchess.com"]
[Source "ChessBase"]
[SourceQuality "1"]
[TimeControl "40/5400+30:1800+30"]

1. e4 {[%emt 0:00:00]} c5 {[%emt 0:00:00]} 2. Nf3 {[%emt 0:00:00]} Nc6 {[%emt 0:00:00]} 3. c3 {[%emt 0:00:00]} d5 {[%emt 0:00:07]} 4. exd5 {[%emt 0:00:05]} Qxd5 {[%emt 0:00:06]} 5. d4 {[%emt 0:00:07]} cxd4 {[%emt 0:00:29]} 6. cxd4 {[%emt 0:00:07]} e6 {[%emt 0:00:10]} 7. Nc3 {[%emt 0:00:29]} Qd8 {[%emt 0:00:07]} 8. Bd3 {[%emt 0:00:58]} Nf6 {[%emt 0:00:09]} 9. O-O {[%emt 0:00:33]} Be7 {[%emt 0:00:11]} 10. a3 {[%emt 0:00:19]} O-O {[%emt 0:00:08]} 11. Bb1 {[%emt 0:00:47]} b6 {[%emt 0:04:03]} 12. Re1 {[%emt 0:01:37]} Bb7 {[%emt 0:03:55]} 13. Qd3 {[%emt 0:00:53]} g6 {[%emt 0:01:16]} 14. Ba2 {[%emt 0:01:10]} Re8 {[%emt 0:08:43]} 15. h4 {[%emt 0:04:47]} Bf8 {[%emt 0:07:27]} 16. Bg5 {[%emt 0:06:14]} h6 {[%emt 0:10:26]} 17. Bf4 {[%emt 0:14:56]} Bg7 {[%emt 0:08:40]} 18. Rad1 {[%emt 0:13:26]} Ne7 {[%emt 0:07:31]} 19. Be5 {[%emt 0:17:21]} Nf5 {[%emt 0:03:46]} 20. d5 {[%emt 0:07:05]} exd5 {[%emt 0:09:10]} 21. h5 {[%emt 0:13:18]} Kh7 {[%emt 0:18:17]} 22. Nxd5 {[%emt 0:06:47]} Nxd5 {[%emt 0:02:03]} 23. hxg6+ {[%emt 0:01:46]} fxg6 {[%emt 0:00:03]} 24. Bxd5 {[%emt 0:00:30]} Bxd5 {[%emt 0:03:50]} 25. Qxd5 {[%emt 0:00:46]} Qxd5 {[%emt 0:00:43]} 26. Rxd5 {[%emt 0:00:03]} Rad8 {[%emt 0:00:18]} 27. Rxd8 {[%emt 0:00:20]} Rxd8 {[%emt 0:00:03]} 28. g4 {[%emt 0:04:44]} Bxe5 {[%emt 0:02:13]} 29. Rxe5 {[%emt 0:00:12]} Nd4 {[%emt 0:05:34]} 30. Re7+ {[%emt 0:00:52]} Kg8 {[%emt 0:00:05]} 31. Ne5 {[%emt 0:03:14]} Rd5 {[%emt 0:03:46]} 32. Kf1 {[%emt 0:01:36]} g5 {[%emt 0:01:09]} 33. Nf7 {[%emt 0:00:46]} a5 {[%emt 0:01:18]} 34. Nxh6+ {[%emt 0:00:10]} Kf8 {[%emt 0:00:05]} 35. Rf7+ {[%emt 0:00:45]} Ke8 {[%emt 0:00:06]} 36. Rb7 {[%emt 0:00:31]} b5 {[%emt 0:01:06]} 37. Ng8 {[%emt 0:00:38]} Rd6 {[%emt 0:00:20]} 38. Ne7 {[%emt 0:00:25]} a4 {[%emt 0:01:03]} 39. Nf5 {[%emt 0:00:29]} Nxf5 {[%emt 0:00:29]} 40. gxf5 {[%emt 0:00:00]} Rd5 {[%emt 0:00:00]} 41. f6 {[%emt 0:02:50]} Rf5 {[%emt 0:01:51]} 42. Kg2 {[%emt 0:02:28]} g4 {[%emt 0:03:07]} 43. Kg3 {[%emt 0:15:04]} Rxf6 {[%emt 0:14:53]} 44. Rxb5 {[%emt 0:01:09]} Rf3+ {[%emt 0:00:04]} 45. Kg2 {[%emt 0:03:41]} Rf4 {[%emt 0:01:38]} 46. Rb7 {[%emt 0:04:41]} Kd8 {[%emt 0:01:04]} 47. Kg3 {[%emt 0:01:26]} Rf3+ {[%emt 0:00:16]} 48. Kg2 {[%emt 0:00:49]} Rf4 {[%emt 0:00:07]} 49. b3 {[%emt 0:02:27]} axb3 {[%emt 0:05:30]} 50. Rxb3 {[%emt 0:00:04]} Ra4 {[%emt 0:00:04]} 51. Re3 {[%emt 0:00:07]} Kd7 {[%emt 0:00:45]} 52. Kg3 {[%emt 0:00:31]} Kd6 {[%emt 0:00:13]} 53. Kh4 {[%emt 0:00:31]} Rf4 {[%emt 0:02:57]} 54. Re2 {[%emt 0:00:14]} Kd5 {[%emt 0:00:44]} 55. Kg5 {[%emt 0:00:40]} Ra4 {[%emt 0:04:16]} 56. Re3 {[%emt 0:00:13]} Kd6 {[%emt 0:00:20]} 57. Kf5 {[%emt 0:00:13]} Kd7 {[%emt 0:00:47]} 58. Re4 {[%emt 0:01:21]} Rxa3 {[%emt 0:00:06]} 59. Kxg4 {[%emt 0:00:05]} Ra8 {[%emt 0:01:12]} 60. f4 {[%emt 0:00:38]} Rg8+ {[%emt 0:00:24]} 61. Kh5 {[%emt 0:00:45]} Rh8+ {[%emt 0:00:22]} 62. Kg6 {[%emt 0:00:14]} Rg8+ {[%emt 0:00:12]} 63. Kf6 {[%emt 0:00:52]} Rg4 {[%emt 0:00:48]} 64. Re7+ {[%emt 0:00:16]} Kd6 {[%emt 0:00:38]} 65. f5 {[%emt 0:00:09]} Rf4 {[%emt 0:00:16]} 66. Re3 {[%emt 0:00:35]} Kd7 {[%emt 0:00:11]} 67. Kg6 {[%emt 0:00:09]} Rf1 {[%emt 0:00:22]} 68. f6 {[%emt 0:00:08]} Rf2 {[%emt 0:00:19]} 69. f7 {[%emt 0:00:13]} Rg2+ {[%emt 0:00:31]} 70. Kf6 {[%emt 0:00:33]} Rf2+ {[%emt 0:00:06]} 71. Kg7 {[%emt 0:00:03]} Rg2+ {[%emt 0:00:05]} 72. Kf8 {[%emt 0:00:02]} Rg1 {[%emt 0:00:14]} 73. Rd3+ {[%emt 0:00:16]} Kc7 {[%emt 0:00:06]} 74. Rd4 {[%emt 0:00:20]} Kc6 {[%emt 0:00:59]} 75. Ke7 {[%emt 0:01:10]} Re1+ {[%emt 0:00:07]} 76. Kf6 {[%emt 0:00:07]} Rf1+ {[%emt 0:00:05]} 77. Ke6 {[%emt 0:00:28]} Kc7 {[%emt 0:00:20]} 78. Rd5 {[%emt 0:00:36]} 1-0

[Event "XXVII RUS-chT Women 2020"]
[Site "Sochi"]
[Date "2020.11.19"]
[Round "1.7"]
[White "Bivol, Alina"]
[Black "Vasilevich, Irina"]
[Result "1-0"]
[ECO "B06"]
[WhiteElo "2373"]
[BlackElo "2258"]
[Annotator "ChessBase"]
[PlyCount "161"]
[EventDate "2020.11.19"]
[EventType "team-tourn"]
[EventCountry "RUS"]
[SourceTitle "playchess.com"]
[Source "ChessBase"]
[SourceQuality "1"]
[TimeControl "40/5400+30:1800+30"]

1. e4 {[%emt 0:00:00]} g6 {[%emt 0:00:00]} 2. d4 {[%emt 0:00:40]} Bg7 {[%emt 0:00:00]} 3. Nc3 {[%emt 0:00:54]} d6 {[%emt 0:00:05]} 4. g3 {[%emt 0:02:39]} Nf6 {[%emt 0:00:14]} 5. Bg2 {[%emt 0:00:18]} O-O {[%emt 0:00:16]} 6. Nge2 {[%emt 0:00:04]} e5 {[%emt 0:00:44]} 7. O-O {[%emt 0:03:13]} Nc6 {[%emt 0:02:47]} 8. dxe5 {[%emt 0:04:14]} dxe5 {[%emt 0:02:24]} 9. Bg5 {[%emt 0:03:44]} Bg4 {[%emt 0:04:10]} 10. Qc1 {[%emt 0:04:28]} Nd4 {[%emt 0:27:01]} 11. f3 {[%emt 0:03:08]} Nxe2+ {[%emt 0:05:10]} 12. Nxe2 {[%emt 0:00:11]} Be6 {[%emt 0:00:02]} 13. h3 Qe7 {[%emt 0:10:29]} 14. Qe3 {[%emt 0:18:42]} Bc4 {[%emt 0:03:05]} 15. b3 {[%emt 0:05:07]} Bxe2 {[%emt 0:00:24]} 16. Qxe2 {[%emt 0:00:12]} h6 {[%emt 0:00:07]} 17. Be3 {[%emt 0:00:14]} Rfd8 {[%emt 0:06:25]} 18. Rad1 {[%emt 0:01:24]} a5 {[%emt 0:03:18]} 19. Rd2 {[%emt 0:07:51]} Rxd2 {[%emt 0:03:08]} 20. Qxd2 {[%emt 0:00:08]} a4 {[%emt 0:01:25]} 21. Rd1 {[%emt 0:00:09]} axb3 {[%emt 0:00:44]} 22. axb3 {[%emt 0:00:38]} Kh7 {[%emt 0:00:41]} 23. Bf1 {[%emt 0:01:00]} Bf8 {[%emt 0:04:12]} 24. Bc4 {[%emt 0:05:38]} c6 {[%emt 0:01:34]} 25. Kg2 {[%emt 0:04:59]} b5 {[%emt 0:01:39]} 26. Be2 {[%emt 0:00:09]} Ra2 {[%emt 0:02:16]} 27. Qc3 {[%emt 0:00:57]} Qe6 {[%emt 0:01:11]} 28. Rd2 {[%emt 0:03:58]} h5 {[%emt 0:06:17]} 29. g4 {[%emt 0:00:39]} hxg4 {[%emt 0:06:00]} 30. hxg4 {[%emt 0:00:17]} Kg7 {[%emt 0:00:10]} 31. Rd1 {[%emt 0:01:16]} Be7 {[%emt 0:00:53]} 32. Bf2 {[%emt 0:03:15]} Nh7 {[%emt 0:02:26]} 33. Bg3 {[%emt 0:02:32]} Bf6 {[%emt 0:00:20]} 34. Bf2 {[%emt 0:05:29]} Be7 {[%emt 0:00:36]} 35. Rd3 {[%emt 0:03:23]} Ng5 {[%emt 0:03:28]} 36. Qd2 {[%emt 0:00:45]} Qc8 {[%emt 0:00:52]} 37. Bg3 {[%emt 0:01:43]} Qh8 {[%emt 0:01:36]} 38. Bxe5+ {[%emt 0:00:34]} f6 {[%emt 0:00:27]} 39. Qxg5 {[%emt 0:02:38]} Rxc2 {[%emt 0:00:06]} 40. Bxf6+ {[%emt 0:00:00]} Bxf6 {[%emt 0:00:00]} 41. Rd7+ {[%emt 0:10:34]} Kf8 {[%emt 0:01:01]} 42. Qe3 {[%emt 0:00:29]} Qh4 {[%emt 0:06:39]} 43. Qd3 {[%emt 0:04:33]} Ra2 {[%emt 0:07:55]} 44. Qd6+ {[%emt 0:06:59]} Be7 {[%emt 0:00:18]} 45. Qd1 {[%emt 0:09:54]} Qf6 {[%emt 0:05:30]} 46. Rd2 {[%emt 0:01:54]} Ra1 {[%emt 0:02:54]} 47. Qc2 {[%emt 0:00:01]} Bd6 {[%emt 0:03:01]} 48. Qxc6 {[%emt 0:03:02]} Rg1+ {[%emt 0:00:21]} 49. Kxg1 {[%emt 0:00:07]} Bh2+ {[%emt 0:00:04]} 50. Kxh2 {[%emt 0:00:06]} Qxc6 {[%emt 0:00:03]} 51. Kg2 {[%emt 0:00:47]} Qc3 {[%emt 0:08:51]} 52. Rd5 {[%emt 0:01:32]} Qc2 {[%emt 0:00:52]} 53. Kf1 {[%emt 0:00:24]} b4 {[%emt 0:01:27]} 54. Bc4 {[%emt 0:00:12]} Qh2 {[%emt 0:00:43]} 55. Rb5 {[%emt 0:02:05]} Qf4 {[%emt 0:00:26]} 56. Ke2 {[%emt 0:00:28]} Qh2+ {[%emt 0:00:14]} 57. Ke3 {[%emt 0:00:27]} Qg1+ {[%emt 0:00:55]} 58. Kf4 {[%emt 0:01:36]} Qc1+ {[%emt 0:00:06]} 59. Ke5 {[%emt 0:02:18]} Qc3+ {[%emt 0:00:44]} 60. Kf4 {[%emt 0:00:31]} Qc1+ {[%emt 0:00:07]} 61. Ke5 {[%emt 0:00:20]} Qg5+ {[%emt 0:00:09]} 62. Kd4 {[%emt 0:01:45]} Qf4 {[%emt 0:00:34]} 63. Rb7 {[%emt 0:02:53]} Qf6+ {[%emt 0:00:57]} 64. Kc5 {[%emt 0:00:29]} Qc3 {[%emt 0:00:24]} 65. Rf7+ {[%emt 0:00:35]} Ke8 {[%emt 0:00:12]} 66. Kb5 {[%emt 0:01:00]} Qd2 {[%emt 0:00:23]} 67. Bd5 {[%emt 0:00:32]} Qc3 {[%emt 0:00:21]} 68. f4 {[%emt 0:00:18]} Qd2 {[%emt 0:00:59]} 69. g5 {[%emt 0:00:14]} Qe1 {[%emt 0:00:14]} 70. Rf6 {[%emt 0:00:52]} Ke7 {[%emt 0:00:35]} 71. Ka4 {[%emt 0:00:38]} Qd2 {[%emt 0:00:20]} 72. Bc4 {[%emt 0:00:35]} Kd7 {[%emt 0:00:34]} 73. e5 {[%emt 0:00:15]} Ke7 {[%emt 0:00:26]} 74. Re6+ {[%emt 0:00:11]} Kf8 {[%emt 0:00:16]} 75. Rxg6 {[%emt 0:00:24]} Qc3 {[%emt 0:00:42]} 76. Rf6+ {[%emt 0:00:14]} Kg7 {[%emt 0:00:05]} 77. e6 {[%emt 0:00:15]} Qe1 {[%emt 0:00:07]} 78. e7 {[%emt 0:00:23]} Qe3 {[%emt 0:02:07]} 79. Re6 {[%emt 0:00:48]} Qa7+ {[%emt 0:00:16]} 80. Kxb4 {[%emt 0:00:46]} Qb7+ {[%emt 0:00:08]} 81. Bb5 {[%emt 0:00:13]} 1-0

[Event "XXVII RUS-chT Women 2020"]
[Site "Sochi"]
[Date "2020.11.19"]
[Round "1.8"]
[White "Stroganova, Karina"]
[Black "Voit, Daria"]
[Result "0-1"]
[ECO "A45"]
[WhiteElo "1826"]
[BlackElo "2353"]
[Annotator "NA"]
[PlyCount "84"]
[EventDate "2020.11.19"]
[EventType "team-tourn"]
[EventCountry "RUS"]
[SourceTitle "playchess.com"]
[Source "ChessBase"]
[SourceQuality "1"]
[TimeControl "40/5400+30:1800+30"]

1. d4 {[%emt 0:00:00]} Nf6 {[%emt 0:00:00]} 2. Bf4 {[%emt 0:00:00]} g6 {[%emt 0:00:57]} 3. e3 {[%emt 0:00:10]} Bg7 {[%emt 0:00:02]} 4. Be2 {[%emt 0:00:14]} d6 {[%emt 0:00:07]} 5. Nf3 {[%emt 0:00:19]} O-O {[%emt 0:01:28]} 6. O-O {[%emt 0:00:12]} b6 {[%emt 0:00:05]} 7. Nc3 {[%emt 0:01:00]} Bb7 {[%emt 0:00:25]} 8. a4 {[%emt 0:00:35]} a6 9. Nd2 {[%emt 0:03:01]} Nbd7 {[%emt 0:03:02]} 10. Bf3 {[%emt 0:01:39]} c6 {[%emt 0:01:28]} 11. h3 {[%emt 0:01:12]} Qc7 {[%emt 0:04:41]} 12. Nce4 {[%emt 0:14:19]} Nd5 {[%emt 0:10:04]} 13. Bh2 {[%emt 0:00:42]} c5 {[%emt 0:00:33]} 14. c3 $11 {[%emt 0:02:48]} h6 15. Rc1 {[%emt 0:12:28]} c4 {[%emt 0:09:41]} 16. b3 {[%emt 0:09:11]} b5 {[%emt 0:00:25]} 17. bxc4 {[%emt 0:01:17]} bxc4 {[%emt 0:00:05]} 18. Qe2 {[%emt 0:00:27]} Rfc8 {[%emt 0:00:42]} 19. Rc2 {[%emt 0:05:53]} a5 {[%emt 0:00:47]} 20. Rb1 {[%emt 0:00:19]} N7b6 {[%emt 0:05:04]} 21. Nc5 {[%emt 0:02:46]} Bc6 {[%emt 0:03:34]} 22. Nxc4 {[%emt 0:01:35]} Nxc4 {[%emt 0:07:34]} 23. Qxc4 {[%emt 0:00:11]} Nb6 {[%emt 0:01:19]} 24. Qe2 {[%emt 0:09:01]} Nxa4 {[%emt 0:10:02]} 25. Nxa4 {[%emt 0:05:28]} Bxa4 {[%emt 0:00:06]} 26. Ra2 {[%emt 0:07:11]} Rab8 {[%emt 0:05:12]} 27. Rc1 {[%emt 0:02:41]} Bb3 {[%emt 0:06:17]} 28. Ra3 {[%emt 0:00:55]} a4 {[%emt 0:01:05]} 29. Qd2 {[%emt 0:00:27]} Qa5 {[%emt 0:01:29]} 30. Bd1 {[%emt 0:02:00]} Bf8 {[%emt 0:05:19]} 31. Bf4 {[%emt 0:01:53]} e5 {[%emt 0:13:40]} 32. Bg3 {[%emt 0:01:15]} exd4 {[%emt 0:00:51]} 33. exd4 {[%emt 0:00:59]} d5 {[%emt 0:00:07]} 34. Raa1 {[%emt 0:00:40]} Rb6 {[%emt 0:00:35]} 35. Bf4 {[%emt 0:04:47]} Bxd1 {[%emt 0:00:47]} 36. Qxd1 {[%emt 0:00:59]} a3 {[%emt 0:00:16]} 37. Ra2 {[%emt 0:00:35]} Rb2 {[%emt 0:02:34]} 38. Raa1 {[%emt 0:04:31]} Rxc3 {[%emt 0:02:46]} 39. Bd2 {[%emt 0:01:35]} Rxc1 {[%emt 0:00:10]} 40. Bxc1 {[%emt 0:00:00]} Rb7 {[%emt 0:00:00]} 41. Ra2 {[%emt 0:02:27]} Rb1 {[%emt 0:03:58]} 42. Kh2 {[%emt 0:00:42]} Qc7+ {[%emt 0:00:06]} 0-1

[Event "XXVII RUS-chT Women 2020"]
[Site "Sochi"]
[Date "2020.11.19"]
[Round "1.9"]
[White "Zherebtsova, Alexandra"]
[Black "Bodnaruk, Anastasia"]
[Result "1/2-1/2"]
[ECO "E73"]
[WhiteElo "2204"]
[BlackElo "2414"]
[Annotator "NA"]
[PlyCount "68"]
[EventDate "2020.11.19"]
[EventType "team-tourn"]
[EventCountry "RUS"]
[SourceTitle "playchess.com"]
[Source "ChessBase"]
[SourceQuality "1"]
[TimeControl "40/5400+30:1800+30"]

1. d4 {[%emt 0:00:00]} Nf6 {[%emt 0:00:00]} 2. c4 {[%emt 0:00:00]} g6 {[%emt 0:00:00]} 3. Nc3 {[%emt 0:00:00]} Bg7 {[%emt 0:00:00]} 4. e4 {[%emt 0:00:23]} d6 {[%emt 0:00:00]} 5. Be2 {[%emt 0:01:17]} O-O {[%emt 0:00:00]} 6. Be3 {[%emt 0:01:01]} c5 {[%emt 0:00:56]} 7. d5 {[%emt 0:01:40]} e6 {[%emt 0:00:46]} 8. Nf3 {[%emt 0:03:09]} exd5 {[%emt 0:01:22]} 9. cxd5 {[%emt 0:00:12]} Bg4 {[%emt 0:01:07]} 10. Nd2 {[%emt 0:00:20]} Bxe2 {[%emt 0:00:05]} 11. Qxe2 {[%emt 0:00:03]} Re8 {[%emt 0:00:39]} 12. O-O {[%emt 0:04:59]} Na6 {[%emt 0:01:03]} 13. Rab1 {[%emt 0:12:25]} Nc7 {[%emt 0:07:24]} 14. b4 {[%emt 0:13:06]} Nd7 {[%emt 0:02:47]} 15. Nb5 {[%emt 0:12:39]} Nxb5 {[%emt 0:08:17]} 16. Qxb5 {[%emt 0:00:16] Double Attack} b6 {[%emt 0:00:37]} 17. a3 {[%emt 0:17:56]} (17. bxc5 $11 {keeps the balance.} Nxc5 18. Bxc5 bxc5 19. Qa6) 17... a6 $17 {[%emt 0:09:13]} 18. Qe2 {[%emt 0:03:28]} b5 {[%emt 0:02:07]} 19. bxc5 {[%emt 0:01:12]} dxc5 {[%emt 0:12:17]} 20. a4 {[%emt 0:07:22]} bxa4 {[%emt 0:12:38]} 21. Qd3 {[%emt 0:02:49]} Ne5 {[%emt 0:16:40]} 22. Qa3 {[%emt 0:00:54]} Qa5 {[%emt 0:01:32]} 23. Qxc5 {[%emt 0:09:49]} Qxc5 {[%emt 0:00:27]} 24. Bxc5 {[%emt 0:00:01]} Nd3 {[%emt 0:04:32]} 25. Bd6 {[%emt 0:02:13]} Rac8 {[%emt 0:02:25]} 26. Rb7 {[%emt 0:04:21]} Bd4 {[%emt 0:09:02]} 27. Nf3 {[%emt 0:00:30]} Rxe4 {[%emt 0:00:46]} 28. Ng5 {[%emt 0:01:19]} Nxf2 {[%emt 0:03:18]} 29. Nxf7 {[%emt 0:00:15]} Rh4 {[%emt 0:00:59]} 30. Be5 {[%emt 0:00:28]} Be3 {[%emt 0:02:09]} 31. Nd6 {[%emt 0:00:41]} Nd3+ {[%emt 0:01:47]} 32. Kh1 {[%emt 0:00:05]} Nf2+ {[%emt 0:00:23]} 33. Kg1 {[%emt 0:00:03]} Nd3+ {[%emt 0:00:34]} 34. Kh1 {[%emt 0:00:04]} Nf2+ {[%emt 0:00:33]} 1/2-1/2

[Event "XXVII RUS-chT Women 2020"]
[Site "Sochi"]
[Date "2020.11.19"]
[Round "1.10"]
[White "Ovod, Evgenija"]
[Black "Doroshenko, Diana"]
[Result "1-0"]
[ECO "C07"]
[WhiteElo "2338"]
[BlackElo "2204"]
[Annotator "NA"]
[PlyCount "113"]
[EventDate "2020.11.19"]
[EventType "team-tourn"]
[EventCountry "RUS"]
[SourceTitle "playchess.com"]
[Source "ChessBase"]
[SourceQuality "1"]
[TimeControl "40/5400+30:1800+30"]

1. e4 {[%emt 0:00:00]} e6 {[%emt 0:00:00]} 2. d4 {[%emt 0:00:00]} d5 {[%emt 0:00:00]} 3. Nd2 {[%emt 0:00:00]} c5 {[%emt 0:00:00]} 4. Ngf3 {[%emt 0:00:00]} cxd4 {[%emt 0:00:00]} 5. Nxd4 {[%emt 0:00:00]} Nc6 {[%emt 0:00:00]} 6. Bb5 {[%emt 0:00:10]} Bd7 {[%emt 0:00:00]} 7. Nxc6 {[%emt 0:00:08]} bxc6 {[%emt 0:00:01]} 8. Bd3 {[%emt 0:00:06]} Bd6 {[%emt 0:00:22]} 9. Qe2 {[%emt 0:00:09]} Qc7 {[%emt 0:00:36]} 10. Nf3 {[%emt 0:00:11]} f6 {[%emt 0:02:36]} 11. O-O {[%emt 0:12:11]} Ne7 {[%emt 0:07:25]} 12. c4 {[%emt 0:00:34]} dxe4 {[%emt 0:06:50]} 13. Bxe4 {[%emt 0:05:56]} Rd8 {[%emt 0:07:04]} 14. Bd2 {[%emt 0:04:23]} c5 {[%emt 0:03:49]} 15. Bc3 $11 {[%emt 0:05:20]} e5 {[%emt 0:03:18]} 16. Bc2 {[%emt 0:10:31]} O-O {[%emt 0:03:06]} 17. Rad1 {[%emt 0:14:50]} Bg4 {[%emt 0:10:17]} 18. h3 {[%emt 0:00:11]} Bh5 {[%emt 0:11:40]} 19. g4 {[%emt 0:01:42]} Bf7 {[%emt 0:05:37]} 20. Nh4 {[%emt 0:02:23]} Nc6 {[%emt 0:05:43]} 21. Be4 {[%emt 0:10:16]} Nd4 {[%emt 0:03:35]} 22. Qd3 {[%emt 0:00:08]} g6 {[%emt 0:00:26]} 23. Ng2 {[%emt 0:05:47]} Be6 {[%emt 0:11:47]} 24. Ne3 {[%emt 0:00:18]} Qf7 {[%emt 0:03:05]} 25. Bd5 {[%emt 0:00:35]} f5 {[%emt 0:05:48]} 26. f3 {[%emt 0:05:10]} Qe7 {[%emt 0:02:08]} 27. Rd2 {[%emt 0:11:51]} f4 {[%emt 0:05:34]} 28. Bxd4 {[%emt 0:02:58]} exd4 {[%emt 0:01:16]} 29. Bxe6+ {[%emt 0:00:21]} Qxe6 {[%emt 0:00:04]} 30. Nd5 {[%emt 0:00:06]} Rde8 {[%emt 0:01:32]} 31. Kg2 {[%emt 0:03:19]} Qd7 {[%emt 0:00:30]} 32. g5 {[%emt 0:02:22]} Be5 {[%emt 0:00:31]} 33. Re2 {[%emt 0:00:45]} Rf5 {[%emt 0:00:18]} 34. h4 {[%emt 0:00:13]} h6 {[%emt 0:01:01]} 35. Rfe1 {[%emt 0:01:13]} Qd8 {[%emt 0:00:41]} 36. Nf6+ {[%emt 0:01:54]} Rxf6 {[%emt 0:00:04]} 37. gxf6 {[%emt 0:00:03]} Qxf6 {[%emt 0:00:04]} 38. Rh1 {[%emt 0:00:55]} Kf7 {[%emt 0:00:44]} 39. Kf1 {[%emt 0:00:55]} Re7 {[%emt 0:00:26]} 40. Ke1 {[%emt 0:00:00]} Qa6 {[%emt 0:00:00]} 41. h5 {[%emt 0:15:37]} Qf6 {[%emt 0:01:14]} 42. Qxg6+ {[%emt 0:02:11]} Qxg6 {[%emt 0:00:04]} 43. hxg6+ {[%emt 0:00:02]} Kxg6 {[%emt 0:00:04]} 44. Kd2 {[%emt 0:00:07]} Bf6 {[%emt 0:01:47]} 45. Rxe7 Bxe7 {[%emt 0:00:01]} 46. Kd3 {[%emt 0:01:04]} h5 {[%emt 0:00:13]} 47. Ke4 {[%emt 0:00:35]} Bg5 {[%emt 0:00:04]} 48. Kd5 {[%emt 0:03:38]} Be7 {[%emt 0:00:30]} 49. Ke5 {[%emt 0:00:49]} d3 {[%emt 0:03:18]} 50. Kxf4 {[%emt 0:02:13]} Bf6 {[%emt 0:00:24]} 51. Rg1+ {[%emt 0:01:35]} Kh6 {[%emt 0:00:30]} 52. Kf5 {[%emt 0:01:27]} Bxb2 {[%emt 0:00:12]} 53. Rd1 {[%emt 0:00:04]} h4 {[%emt 0:01:22]} 54. Kg4 {[%emt 0:01:15]} Bf6 {[%emt 0:00:21]} 55. Rxd3 {[%emt 0:00:14]} a5 {[%emt 0:00:05]} 56. Rd5 {[%emt 0:01:22]} Be7 {[%emt 0:00:12]} 57. Re5 {[%emt 0:00:13]} 1-0

[Event "XXVII RUS-chT Women 2020"]
[Site "Sochi"]
[Date "2020.11.19"]
[Round "1.11"]
[White "Khokhlova, Daria"]
[Black "Belenkaya, Dina"]
[Result "0-1"]
[ECO "D04"]
[WhiteElo "2196"]
[BlackElo "2283"]
[Annotator "NA"]
[PlyCount "72"]
[EventDate "2020.11.19"]
[EventType "team-tourn"]
[EventCountry "RUS"]
[SourceTitle "playchess.com"]
[Source "ChessBase"]
[SourceQuality "1"]
[TimeControl "40/5400+30:1800+30"]

1. d4 {[%emt 0:00:00]} d5 {[%emt 0:00:00]} 2. Nf3 {[%emt 0:00:00]} Nf6 {[%emt 0:00:00]} 3. e3 {[%emt 0:00:00]} c5 {[%emt 0:00:51]} 4. Bb5+ {[%emt 0:00:00]} Bd7 {[%emt 0:02:01]} 5. Bxd7+ {[%emt 0:00:14]} Nbxd7 {[%emt 0:00:35]} 6. O-O {[%emt 0:00:16]} e6 {[%emt 0:03:28]} 7. b3 {[%emt 0:00:09]} Rc8 {[%emt 0:05:46]} 8. Bb2 {[%emt 0:00:31]} Be7 {[%emt 0:10:21]} 9. Nbd2 {[%emt 0:01:48]} b5 {[%emt 0:05:39]} 10. dxc5 {[%emt 0:03:13]} Nxc5 {[%emt 0:01:11]} 11. Qe2 $11 {[%emt 0:01:05]} Qb6 {[%emt 0:02:13]} 12. Bd4 {[%emt 0:03:35]} Qb7 {[%emt 0:09:40]} 13. Ne5 {[%emt 0:13:46]} O-O {[%emt 0:02:29]} 14. f4 {[%emt 0:01:08]} Nce4 {[%emt 0:04:12]} 15. Ndf3 {[%emt 0:15:29]} Nc3 {[%emt 0:01:57]} 16. Bxc3 {[%emt 0:01:51]} Rxc3 {[%emt 0:00:04]} 17. Nd4 {[%emt 0:00:03]} Bc5 {[%emt 0:07:24]} 18. a4 {[%emt 0:03:09]} b4 {[%emt 0:02:28]} 19. Nd3 {[%emt 0:04:42]} Rc8 {[%emt 0:11:23]} 20. Nxc5 {[%emt 0:01:26]} R8xc5 {[%emt 0:00:25]} 21. a5 {[%emt 0:07:52]} Ne4 {[%emt 0:03:16]} 22. a6 {[%emt 0:01:32]} Qb6 {[%emt 0:00:12]} 23. Ra4 {[%emt 0:02:13]} f6 {[%emt 0:04:45]} 24. Kh1 {[%emt 0:03:48]} h6 {[%emt 0:09:10]} 25. Kg1 {[%emt 0:18:39]} Rxe3 {[%emt 0:02:47]} 26. Qxe3 {[%emt 0:00:07]} Rc3 {[%emt 0:00:19]} 27. Qe2 {[%emt 0:01:08]} Qxd4+ {[%emt 0:00:05]} 28. Kh1 {[%emt 0:00:04]} Qc5 {[%emt 0:02:17]} 29. Qg4 {[%emt 0:06:12]} Qb6 {[%emt 0:08:26]} 30. Ra2 {[%emt 0:02:16]} Kh8 {[%emt 0:00:15]} 31. Qh4 {[%emt 0:03:06]} Qc5 {[%emt 0:00:12]} 32. Qe1 {[%emt 0:03:47]} Re3 {[%emt 0:00:22]} 33. Qd1 {[%emt 0:01:30]} Nc3 {[%emt 0:00:15]} 34. Qa1 {[%emt 0:00:01]} Nxa2 {[%emt 0:00:35]} 35. Qxa2 {[%emt 0:00:01]} Re2 {[%emt 0:00:17]} 36. Qa4 {[%emt 0:00:09]} Qf2 {[%emt 0:00:46]} 0-1